bitfinex/quotes_BTCUSD_20260110
["timestamp","ask_amount","ask_price","bid_price","bid_amount"]
[1768039888171,0.01121685,90770.0,90756.0,0.06014337]
[1768039888368,0.0002,90770.0,90757.0,0.01101843]
[1768039888574,0.01121685,90770.0,90756.0,0.06014337]
[1768039889976,0.0002,90770.0,90757.0,0.01101843]
[1768039890596,0.01121685,90770.0,90756.0,0.06014337]
[1768039890895,0.04755931,90769.0,90756.0,0.01101855]
[1768039891093,0.04755931,90769.0,90749.0,0.22038619]
[1768039891094,0.04755931,90752.0,90737.0,0.01102086]
[1768039891293,0.010068,90756.0,90735.0,0.00051132]
[1768039891294,0.12356371,90742.0,90735.0,0.00051132]
[1768039891495,0.13449362,90742.0,90735.0,0.00051132]
[1768039891741,0.04755931,90740.0,90735.0,0.00051132]
[1768039892088,0.0585798,90740.0,90730.0,0.0001507]
[1768039892303,0.04755931,90740.0,90730.0,0.0001507]
[1768039892819,0.0585798,90740.0,90730.0,0.0001507]
[1768039892995,0.04755931,90740.0,90730.0,0.0001507]
[1768039893397,0.0585798,90740.0,90730.0,0.0001507]
[1768039893606,0.01102061,90739.0,90730.0,0.0001507]
[1768039894326,0.0585798,90740.0,90730.0,0.0001507]
[1768039894541,0.01102061,90739.0,90730.0,0.0001507]
[1768039895264,0.0585798,90740.0,90730.0,0.0001507]
[1768039895451,0.04755931,90740.0,90730.0,0.0001507]
[1768039896068,0.01102074,90738.0,90730.0,0.0001507]
[1768039896500,0.04704057,90738.0,90730.0,0.0001507]
[1768039898280,0.01102049,90740.0,90730.0,0.0001507]
[1768039899452,0.01102037,90741.0,90730.0,0.0001507]
[1768039899856,0.05806082,90742.0,90730.0,0.0001507]
[1768039900411,0.04704057,90742.0,90730.0,0.0001507]
[1768039901149,0.04704057,90742.0,90730.0,0.01117241]
[1768039901698,0.04704057,90742.0,90731.0,0.01102159]
[1768039902303,0.04704057,90742.0,90730.0,0.01117241]
[1768039903333,0.04704057,90742.0,90731.0,0.01102159]
[1768039903534,0.04704057,90742.0,90730.0,0.01117241]
[1768039904025,0.04704057,90742.0,90731.0,0.01102159]
[1768039904391,0.04704057,90742.0,90730.0,0.01117241]
[1768039904392,0.04704057,90742.0,90730.0,0.0001507]
[1768039904783,0.04704057,90742.0,90731.0,0.01102159]
[1768039904990,0.04704057,90742.0,90730.0,0.01117241]
[1768039905401,0.04704057,90742.0,90730.0,0.0001507]
[1768039905602,0.04704057,90742.0,90730.0,0.00020494]
[1768039905811,0.05806082,90742.0,90730.0,0.00020494]
[1768039906484,0.04704057,90742.0,90730.0,0.00020494]
[1768039908603,0.05806082,90742.0,90730.0,0.00020494]
[1768039908966,0.01102037,90741.0,90730.0,0.00020494]
[1768039909519,0.05806082,90742.0,90730.0,0.00020494]
[1768039909719,0.01102037,90741.0,90730.0,0.00020494]
[1768039910225,0.05806082,90742.0,90730.0,0.00020494]
[1768039911224,0.04704057,90742.0,90730.0,0.00020494]
[1768039913054,0.05806082,90742.0,90730.0,0.00020494]
[1768039913408,0.05509954,90745.0,90730.0,0.01122665]
[1768039913409,0.01101989,90745.0,90730.0,0.01122665]
[1768039914460,0.01102013,90743.0,90730.0,0.00020494]
[1768039915312,0.01102001,90744.0,90730.0,0.01122665]
[1768039916887,0.01101989,90745.0,90730.0,0.00020494]
[1768039917089,0.01102001,90744.0,90730.0,0.01122665]
[1768039917455,0.01101989,90745.0,90730.0,0.01122665]
[1768039918211,0.01102001,90744.0,90730.0,0.01122665]
[1768039918673,0.01101989,90745.0,90731.0,0.01102159]
[1768039918875,0.04858453,90744.0,90730.0,0.00020494]
[1768039919206,0.05960454,90744.0,90730.0,0.01122665]
[1768039921098,0.01102013,90743.0,90730.0,0.00020494]
[1768039921704,0.05960454,90744.0,90730.0,0.01122665]
[1768039921934,0.01102013,90743.0,90730.0,0.00020494]
[1768039923811,0.05960454,90744.0,90730.0,0.01122665]
[1768039924035,0.05960454,90744.0,90730.0,0.00020494]
[1768039924347,0.05960454,90744.0,90730.0,0.01122665]
[1768039925340,0.01102013,90743.0,90730.0,0.00020494]
[1768039925778,0.05960454,90744.0,90730.0,0.01122665]
[1768039926091,0.01102013,90743.0,90730.0,0.00020494]
[1768039926985,0.05960454,90744.0,90730.0,0.01122665]
[1768039927186,0.01102013,90743.0,90730.0,0.00020494]
[1768039927398,0.05960454,90744.0,90730.0,0.01122665]
[1768039927893,0.04858453,90744.0,90730.0,0.01122665]
[1768039928077,0.01102013,90743.0,90730.0,0.00020494]
[1768039928278,0.05960454,90744.0,90730.0,0.00020494]
[1768039928480,0.05960454,90744.0,90730.0,0.01122665]
[1768039930465,0.04858453,90744.0,90730.0,0.01122665]
[1768039930671,0.04858453,90744.0,90731.0,0.01102159]
[1768039930898,0.05960454,90744.0,90730.0,0.01122665]
[1768039931295,0.04858453,90744.0,90731.0,0.01102159]
[1768039931499,0.04858453,90744.0,90730.0,0.01122665]
[1768039932123,0.05960454,90744.0,90730.0,0.01122665]
[1768039933555,0.04858453,90744.0,90730.0,0.00020494]
[1768039934937,0.04858453,90744.0,90731.0,0.01102159]
[1768039935144,0.05960454,90744.0,90730.0,0.01122665]
[1768039935463,0.04858453,90744.0,90731.0,0.01102159]
[1768039935759,0.05960454,90744.0,90730.0,0.01122665]
[1768039937356,0.04858453,90744.0,90730.0,0.01122665]
[1768039937661,0.05960454,90744.0,90730.0,0.01122665]
[1768039937836,0.04858453,90744.0,90730.0,0.01122665]
[1768039938484,0.05960454,90744.0,90730.0,0.01122665]
[1768039938815,0.04858453,90744.0,90730.0,0.01122665]
[1768039939202,0.05960454,90744.0,90730.0,0.01122665]
[1768039940133,0.04858453,90744.0,90731.0,0.01102159]
[1768039940882,0.05960454,90744.0,90730.0,0.01122665]
[1768039941131,0.04858453,90744.0,90730.0,0.01122665]
[1768039941272,0.04858453,90744.0,90731.0,0.01102159]
[1768039941469,0.05960454,90744.0,90730.0,0.00020494]
[1768039941768,0.05960454,90744.0,90730.0,0.01122665]
[1768039942167,0.04858453,90744.0,90730.0,0.00020494]
[1768039942369,0.05960454,90744.0,90730.0,0.01122665]
[1768039942910,0.04858453,90744.0,90730.0,0.01122665]
[1768039943069,0.05960454,90744.0,90730.0,0.01122665]
[1768039943403,0.04858453,90744.0,90731.0,0.01102159]
[1768039944208,0.04858453,90744.0,90732.0,0.01102146]
[1768039944609,0.04858453,90744.0,90730.0,0.01122665]
[1768039944816,0.04858453,90744.0,90732.0,0.01102146]
[1768039945021,0.04858453,90744.0,90731.0,0.01102159]
[1768039945632,0.04858453,90744.0,90730.0,0.01122665]
[1768039946018,0.05960454,90744.0,90730.0,0.01122665]
[1768039946421,0.02208,90746.0,90744.0,0.000999]
[1768039946616,0.01101916,90751.0,90736.0,0.04768337]
[1768039946816,0.02208,90750.0,90736.0,0.05870435]
[1768039947040,0.02208,90750.0,90737.0,0.05870423]
[1768039947498,0.02208,90750.0,90738.0,0.01102074]
[1768039947700,0.02208,90750.0,90737.0,0.05870423]
[1768039947925,0.02208,90750.0,90738.0,0.01102074]
[1768039948123,0.01101819,90759.0,90740.0,0.05870386]
[1768039948326,0.02208,90758.0,90745.0,0.04768337]
[1768039948542,0.02208,90758.0,90745.0,0.05855289]
[1768039948741,0.02208,90758.0,90746.0,0.01101976]
[1768039948945,0.02208,90758.0,90745.0,0.05855289]
[1768039949142,0.02208,90758.0,90746.0,0.01101976]
[1768039949355,0.02208,90758.0,90745.0,0.05855289]
[1768039950822,0.02208,90758.0,90746.0,0.01101976]
[1768039951021,0.02208,90758.0,90745.0,0.05855289]
[1768039951267,0.02208,90758.0,90746.0,0.01101976]
[1768039952035,0.02208,90758.0,90745.0,0.05855289]
[1768039952880,0.02208,90758.0,90746.0,0.01101976]
[1768039953058,0.02208,90758.0,90745.0,0.05855289]
[1768039953844,0.02208,90758.0,90745.0,0.05832115]
[1768039954485,0.02208,90758.0,90745.0,0.04730126]
[1768039954709,0.03309831,90758.0,90745.0,0.04730126]
[1768039955421,0.01101843,90757.0,90745.0,0.04730126]
[1768039957745,0.03309831,90758.0,90745.0,0.04730126]
[1768039958301,0.01101843,90757.0,90745.0,0.04730126]
[1768039958727,0.04856789,90761.0,90746.0,0.05973923]
[1768039958896,0.01101758,90764.0,90746.0,0.01101976]
[1768039958897,0.04739052,90758.0,90746.0,0.01101976]
[1768039959098,0.04739052,90758.0,90747.0,0.01101964]
[1768039959494,0.04739052,90758.0,90749.0,0.0110194]
[1768039959822,0.02208,90759.0,90749.0,0.0110194]
[1768039960750,0.02208,90759.0,90750.0,0.01101928]
[1768039961088,0.02208,90759.0,90749.0,0.0110194]
[1768039963057,0.02208,90759.0,90751.0,0.01101916]
[1768039963255,0.02208,90759.0,90750.0,0.04871947]
[1768039963461,0.02208,90759.0,90750.0,0.01101928]
[1768039965820,0.02208,90759.0,90749.0,0.0110194]
[1768039966122,0.02208,90759.0,90750.0,0.01101928]
[1768039966405,0.02208,90759.0,90751.0,0.01101916]
[1768039966822,0.02208,90759.0,90750.0,0.01101928]
[1768039967431,0.02208,90759.0,90748.0,0.01101952]
[1768039967592,0.02208,90759.0,90749.0,0.0110194]
[1768039968231,0.02208,90759.0,90748.0,0.01101952]
[1768039968432,0.02208,90759.0,90749.0,0.0110194]
[1768039968590,0.02208,90759.0,90748.0,0.01101952]
[1768039969849,0.02200111,90759.0,90748.0,0.01101952]
[1768039970760,0.02200111,90759.0,90747.0,0.01101964]
[1768039971847,0.02200111,90759.0,90745.0,0.01101989]
[1768039972048,0.02200111,90759.0,90747.0,0.01101964]
[1768039972960,0.06839681,90759.0,90746.0,0.01101976]
[1768039973344,0.06839681,90759.0,90747.0,0.01101964]
[1768039973544,0.06839681,90759.0,90744.0,0.05973948]
[1768039973770,0.06839681,90759.0,90746.0,0.01101976]
[1768039974374,0.0463957,90755.0,90730.0,0.04971532]
[1768039974669,0.0463957,90751.0,90738.0,0.01102074]
[1768039974866,0.0463957,90751.0,90739.0,0.01102061]
[1768039975081,0.12356371,90745.0,90739.0,0.01102061]
[1768039975458,0.12356371,90745.0,90738.0,0.01102074]
[1768039976760,0.12356371,90745.0,90739.0,0.01102061]
[1768039976965,0.12356371,90745.0,90740.0,0.01102049]
[1768039977350,0.12356371,90745.0,90739.0,0.01102061]
[1768039977766,0.12356371,90745.0,90740.0,0.01102049]
[1768039978176,0.12356371,90745.0,90739.0,0.01102061]
[1768039979596,0.0463957,90751.0,90739.0,0.01102061]
[1768039980532,0.0463957,90751.0,90740.0,0.01102049]
[1768039981728,0.0463957,90751.0,90739.0,0.01102061]
[1768039982324,0.0463957,90751.0,90738.0,0.01102074]
[1768039983083,0.05976593,90750.0,90736.0,0.01102098]
[1768039984235,0.0110194,90749.0,90735.0,0.0331011]
[1768039984440,0.05976593,90750.0,90736.0,0.01102098]
[1768039985065,0.05976593,90750.0,90735.0,0.0331011]
[1768039985470,0.05976593,90750.0,90735.0,0.02208]
[1768039985811,0.0110194,90749.0,90735.0,0.0331011]
[1768039986645,0.01101964,90747.0,90735.0,0.02208]
[1768039986952,0.01101952,90748.0,90735.0,0.02208]
[1768039987568,0.05976605,90749.0,90735.0,0.0331011]
[1768039987736,0.05976617,90748.0,90735.0,0.02208]
[1768039987938,0.05976617,90748.0,90735.0,0.0110211]
[1768039987939,0.04874665,90748.0,90735.0,0.0110211]
[1768039988542,0.05976617,90748.0,90734.0,0.01102122]
[1768039989155,0.04874665,90748.0,90735.0,0.0110211]
[1768039990205,0.04874665,90748.0,90736.0,0.01102098]
[1768039990553,0.05976617,90748.0,90734.0,0.01102122]
[1768039990760,0.04874665,90747.0,90734.0,0.01102122]
[1768039991393,0.04874665,90747.0,90735.0,0.0110211]
[1768039991712,0.04874665,90747.0,90734.0,0.01102122]
[1768039991891,0.04874665,90747.0,90736.0,0.01102098]
[1768039992586,0.04874665,90747.0,90737.0,0.01102086]
[1768039992776,0.04874665,90747.0,90738.0,0.01102074]
[1768039992979,0.04874665,90747.0,90737.0,0.01102086]
[1768039993568,0.02208,90751.0,90739.0,0.01102061]
[1768039993901,0.07082665,90751.0,90739.0,0.01102061]
[1768039994083,0.04874665,90750.0,90739.0,0.01102061]
[1768039994999,0.04874665,90750.0,90740.0,0.01102049]
[1768039995422,0.04874665,90750.0,90739.0,0.01102061]
[1768039995645,0.04874665,90750.0,90738.0,0.01102074]
[1768039996822,0.04874665,90750.0,90737.0,0.01102086]
[1768039997502,0.05976593,90750.0,90736.0,0.01102098]
[1768039998491,0.04874665,90750.0,90737.0,0.01102086]
[1768040000049,0.05976593,90750.0,90736.0,0.01102098]
[1768040000325,0.0110194,90749.0,90735.0,0.0110211]
[1768040000499,0.05976593,90750.0,90736.0,0.01102098]
[1768040002002,0.04874665,90750.0,90736.0,0.01102098]
[1768040003150,0.04874665,90750.0,90740.0,0.01102049]
[1768040003362,0.04874665,90750.0,90741.0,0.01102037]
[1768040003936,0.04874665,90750.0,90742.0,0.01102025]
[1768040006791,0.02208,90751.0,90745.0,0.01101989]
[1768040008190,0.02208,90751.0,90744.0,0.01102001]
[1768040008557,0.02208,90751.0,90745.0,0.01101989]
[1768040010811,0.02208,90751.0,90746.0,0.0570926]
[1768040011364,0.021081,90751.0,90747.0,0.01101964]
[1768040011959,0.021081,90751.0,90748.0,0.01101952]
[1768040012373,0.04874665,90761.0,90749.0,0.05709224]
[1768040012374,0.02208,90753.0,90749.0,0.05709224]
[1768040012775,0.02208,90753.0,90750.0,0.01101928]
[1768040013720,0.02208,90753.0,90749.0,0.0110194]
[1768040014108,0.02208,90753.0,90750.0,0.01101928]
[1768040015938,0.02208,90753.0,90749.0,0.0110194]
[1768040016317,0.02208,90753.0,90750.0,0.01101928]
[1768040017280,0.02208,90753.0,90749.0,0.0110194]
[1768040017564,0.02208,90753.0,90750.0,0.01101928]
[1768040018188,0.02208,90753.0,90749.0,0.0110194]
[1768040018401,0.02208,90753.0,90750.0,0.01101928]
[1768040018793,0.02208,90753.0,90749.0,0.0110194]
[1768040019389,0.04874665,90761.0,90750.0,0.01101928]
[1768040019606,0.02208,90760.0,90747.0,0.01101964]
[1768040020127,0.02208,90760.0,90749.0,0.0110194]
[1768040020351,0.02208,90760.0,90748.0,0.01101952]
[1768040022608,0.02208,90760.0,90749.0,0.0110194]
[1768040023223,0.02208,90760.0,90747.0,0.01101964]
[1768040023396,0.12356371,90755.0,90747.0,0.01101964]
[1768040023986,0.12356371,90755.0,90748.0,0.01101952]
[1768040024160,0.12356371,90755.0,90747.0,0.01101964]
[1768040024577,0.12356371,90755.0,90748.0,0.01101952]
[1768040024778,0.12356371,90755.0,90747.0,0.01101964]
[1768040025377,0.12356371,90755.0,90748.0,0.01101952]
[1768040032984,0.02208,90760.0,90749.0,0.0110194]
[1768040033932,0.02208,90760.0,90751.0,0.01101916]
[1768040034572,0.02208,90760.0,90747.0,0.01101964]
[1768040034770,0.02208,90760.0,90748.0,0.01101952]
[1768040034951,0.02208,90760.0,90749.0,0.0110194]
[1768040035132,0.02208,90760.0,90750.0,0.01101928]
[1768040035337,0.02208,90760.0,90749.0,0.0110194]
[1768040035530,0.02208,90760.0,90750.0,0.01101928]
[1768040035985,0.02208,90760.0,90746.0,0.01101976]
[1768040037247,0.02208,90760.0,90746.0,0.06611826]
[1768040037441,0.02208,90760.0,90748.0,0.01101952]
[1768040037642,0.02208,90760.0,90747.0,0.01101964]
[1768040038075,0.02208,90760.0,90749.0,0.0110194]
[1768040038630,0.02208,90760.0,90747.0,0.01101964]
[1768040040085,0.02208,90760.0,90748.0,0.01101952]
[1768040040898,0.02208,90760.0,90749.0,0.0110194]
[1768040041130,0.02208,90760.0,90747.0,0.05509795]
[1768040041329,0.02208,90760.0,90748.0,0.01101952]
[1768040042358,0.02208,90760.0,90747.0,0.01101964]
[1768040043642,0.02208,90760.0,90749.0,0.0110194]
[1768040045410,0.02208,90760.0,90747.0,0.01101964]
[1768040046214,0.02208,90760.0,90748.0,0.01101952]
[1768040046535,0.02208,90760.0,90747.0,0.01101964]
[1768040046911,0.02208,90760.0,90749.0,0.0110194]
[1768040047117,0.02208,90760.0,90748.0,0.01101952]
[1768040047942,0.02208,90760.0,90747.0,0.01101964]
[1768040048236,0.02208,90760.0,90748.0,0.01101952]
[1768040048705,0.02208,90760.0,90749.0,0.0110194]
[1768040050157,0.02208,90760.0,90748.0,0.01101952]
[1768040051619,0.02208,90760.0,90749.0,0.0110194]
[1768040052381,0.02208,90760.0,90748.0,0.01101952]
[1768040052556,0.02208,90760.0,90749.0,0.0110194]
[1768040052878,0.02208,90760.0,90750.0,0.01101928]
[1768040054286,0.02208,90760.0,90748.0,0.01101952]
[1768040054650,0.02208,90760.0,90750.0,0.01101928]
[1768040055622,0.02208,90760.0,90749.0,0.0110194]
[1768040056711,0.02208,90760.0,90750.0,0.01101928]
[1768040057128,0.02208,90760.0,90749.0,0.0110194]
[1768040057495,0.02208,90760.0,90750.0,0.01101928]
[1768040057925,0.02208,90760.0,90751.0,0.01101916]
[1768040058443,0.02204,90760.0,90751.0,0.01101916]
[1768040061365,0.02204,90760.0,90746.0,0.01101976]
[1768040061542,0.02204,90760.0,90746.0,0.06611857]
[1768040062146,0.02204,90760.0,90748.0,0.01101952]
[1768040062510,0.02204,90760.0,90748.0,0.01081589]
[1768040064603,0.0001507,90762.0,90753.0,0.01101891]
[1768040065055,0.0001507,90762.0,90754.0,0.01101879]
[1768040065417,0.0001507,90762.0,90753.0,0.01101891]
[1768040065760,0.0001507,90762.0,90757.0,0.01101843]
[1768040065963,0.04915554,90761.0,90756.0,0.01101855]
[1768040066307,0.04915554,90761.0,90755.0,0.01101867]
[1768040066725,0.0001507,90762.0,90755.0,0.01101867]
[1768040066929,0.0001507,90762.0,90756.0,0.04760073]
[1768040076609,0.0001507,90762.0,90755.0,0.01101867]
[1768040076809,0.04587532,90762.0,90755.0,0.01101867]
[1768040078346,0.04587532,90762.0,90756.0,0.01101855]
[1768040079558,0.0001507,90762.0,90755.0,0.01101867]
[1768040080790,0.0001507,90762.0,90756.0,0.01101855]
[1768040082399,0.0001507,90762.0,90755.0,0.01101867]
[1768040083838,0.0001507,90762.0,90756.0,0.01101855]
[1768040087958,0.0001507,90762.0,90758.0,0.04860973]
[1768040088463,0.0001507,90762.0,90752.0,0.04860973]
[1768040088857,0.0001507,90762.0,90754.0,0.01101879]
[1768040089163,0.00020882,90762.0,90754.0,0.01101879]
[1768040089481,0.00020882,90762.0,90755.0,0.01101867]
[1768040091352,0.00020882,90762.0,90756.0,0.01101855]
[1768040091552,0.00020882,90762.0,90755.0,0.01101867]
[1768040091757,0.00020882,90762.0,90753.0,0.04860973]
[1768040092955,0.00020882,90762.0,90754.0,0.01101879]
[1768040093154,0.00020882,90762.0,90755.0,0.01101867]
[1768040094733,0.00020882,90762.0,90756.0,0.01101855]
[1768040095904,0.00020882,90762.0,90754.0,0.01101879]
[1768040096111,0.00020882,90762.0,90755.0,0.01101867]
[1768040096886,0.00020882,90762.0,90753.0,0.05962864]
[1768040097148,0.00020882,90762.0,90755.0,0.01101867]
[1768040099113,0.00020882,90762.0,90754.0,0.01101879]
[1768040099467,0.00020882,90762.0,90753.0,0.04860973]
[1768040099899,0.00020882,90762.0,90753.0,0.05962864]
[1768040101281,0.00020882,90762.0,90754.0,0.01101879]
[1768040102345,0.00020882,90762.0,90751.0,0.01101916]
[1768040102346,0.00020882,90762.0,90755.0,0.04562913]
[1768040105444,0.00020882,90762.0,90755.0,0.04463013]
[1768040106093,0.0002,90772.0,90764.0,0.01101758]
[1768040106509,0.0002,90772.0,90764.0,0.05975668]
[1768040106656,0.04879141,90771.0,90763.0,0.0110177]
[1768040107063,0.04879141,90771.0,90764.0,0.01101758]
[1768040107240,0.04879141,90771.0,90762.0,0.01101782]
[1768040107420,0.04879141,90771.0,90764.0,0.01101758]
[1768040107626,0.04879141,90771.0,90763.0,0.0110177]
[1768040108078,0.04879141,90771.0,90764.0,0.01101758]
[1768040108308,0.04879141,90771.0,90765.0,0.01101746]
[1768040108439,0.04879141,90771.0,90764.0,0.01101758]
[1768040108641,0.04879141,90771.0,90765.0,0.01101746]
[1768040109066,0.04879141,90771.0,90766.0,0.01101734]
[1768040109268,0.04879141,90771.0,90765.0,0.01101746]
[1768040109523,0.04879141,90771.0,90766.0,0.01101734]
[1768040110158,0.04879141,90771.0,90767.0,0.01101721]
[1768040110358,0.04879141,90771.0,90768.0,0.01101709]
[1768040111317,0.04879141,90771.0,90767.0,0.01101721]
[1768040111457,0.04879141,90771.0,90766.0,0.01101734]
[1768040111679,0.0002,90772.0,90766.0,0.01101734]
[1768040111883,0.0002,90772.0,90767.0,0.01101721]
[1768040112079,0.0002,90772.0,90766.0,0.01101734]
[1768040112290,0.0002,90772.0,90767.0,0.01101721]
[1768040112775,0.0002,90772.0,90768.0,0.05975619]
[1768040112951,0.0002,90775.0,90768.0,0.05975619]
[1768040112952,0.0002,90775.0,90772.0,0.0487391]
[1768040117768,0.0002,90775.0,90767.0,0.0487391]
[1768040119917,0.0002,90775.0,90767.0,0.04853547]
[1768040120675,0.0002,90775.0,90767.0,0.05955268]
[1768040120875,0.0002,90775.0,90768.0,0.01101709]
[1768040122593,0.00024648,90775.0,90767.0,0.05955268]
[1768040123010,0.00024648,90775.0,90768.0,0.01101709]
[1768040123808,0.00024648,90775.0,90763.0,0.0110177]
[1768040124023,0.00024648,90775.0,90765.0,0.01101746]
[1768040124164,0.00024648,90775.0,90766.0,0.01101734]
[1768040125197,0.12356371,90772.0,90766.0,0.01101734]
[1768040125591,0.12356371,90772.0,90765.0,0.01101746]
[1768040126298,0.12356371,90772.0,90764.0,0.01101758]
[1768040126496,0.12356371,90772.0,90765.0,0.01101746]
[1768040127245,0.12356371,90772.0,90764.0,0.01101758]
[1768040127885,0.12356371,90772.0,90763.0,0.0597568]
[1768040128088,0.12356371,90772.0,90764.0,0.05508789]
[1768040128405,0.12356371,90772.0,90765.0,0.01101746]
[1768040128612,0.12356371,90772.0,90764.0,0.01101758]
[1768040129117,0.12356371,90772.0,90763.0,0.0597568]
[1768040129413,0.12356371,90772.0,90765.0,0.01101746]
[1768040129776,0.12356371,90772.0,90766.0,0.01101734]
[1768040129978,0.12356371,90772.0,90764.0,0.01101758]
[1768040130160,0.12356371,90772.0,90765.0,0.01101746]
[1768040130780,0.12356371,90772.0,90764.0,0.01101758]
[1768040130996,0.12356371,90772.0,90765.0,0.01101746]
[1768040131402,0.12356371,90772.0,90764.0,0.01101758]
[1768040131633,0.12356371,90772.0,90765.0,0.01101746]
[1768040132500,0.12356371,90772.0,90766.0,0.01101734]
[1768040132709,0.12356371,90772.0,90764.0,0.01101758]
[1768040132958,0.12356371,90772.0,90765.0,0.01101746]
[1768040136216,0.12356371,90772.0,90766.0,0.01101734]
[1768040137191,0.12356371,90772.0,90765.0,0.01101746]
[1768040139101,0.12356371,90772.0,90766.0,0.01101734]
[1768040139492,0.12356371,90772.0,90764.0,0.01101758]
[1768040139649,0.12356371,90772.0,90763.0,0.0487391]
[1768040139855,0.12356371,90772.0,90766.0,0.01101734]
[1768040140054,0.12356371,90772.0,90765.0,0.01101746]
[1768040140253,0.12356371,90772.0,90767.0,0.01101721]
[1768040140572,0.04595224,90771.0,90763.0,0.0110177]
[1768040140777,0.04595224,90771.0,90763.0,0.06610607]
[1768040141187,0.12356371,90772.0,90763.0,0.06610607]
[1768040142326,0.12356371,90772.0,90765.0,0.01101746]
[1768040142923,0.12356371,90772.0,90763.0,0.0110177]
[1768040143138,0.12356371,90772.0,90764.0,0.01101758]
[1768040143315,0.12356371,90772.0,90765.0,0.01101746]
[1768040144119,0.12356371,90772.0,90765.0,0.05766264]
[1768040144321,0.12356371,90772.0,90766.0,0.01101734]
[1768040144523,0.12356371,90772.0,90765.0,0.04664518]
[1768040144854,0.12356371,90772.0,90766.0,0.01101734]
[1768040145051,0.12356371,90772.0,90765.0,0.04664518]
[1768040146520,0.12356371,90772.0,90765.0,0.05766264]
[1768040146766,0.12356371,90772.0,90765.0,0.01101746]
[1768040148120,0.12356371,90772.0,90764.0,0.01101758]
[1768040149196,0.12356371,90772.0,90766.0,0.01101734]
[1768040149864,0.12356371,90772.0,90765.0,0.01101746]
[1768040150038,0.12356371,90772.0,90766.0,0.01101734]
[1768040150289,0.12356371,90772.0,90767.0,0.01101721]
[1768040150516,0.12356371,90772.0,90766.0,0.01101734]
[1768040150712,0.12356371,90772.0,90767.0,0.01101721]
[1768040150874,0.12356371,90772.0,90767.0,0.01097205]
[1768040151736,0.12356371,90772.0,90766.0,0.01101734]
[1768040152393,0.12356371,90772.0,90765.0,0.01101746]
[1768040152617,0.12356371,90772.0,90766.0,0.01101734]
[1768040153040,0.12356371,90772.0,90767.0,0.01101721]
[1768040153337,0.12356371,90772.0,90766.0,0.01101734]
[1768040153479,0.12356371,90772.0,90765.0,0.01101746]
[1768040153925,0.12356371,90772.0,90766.0,0.01101734]
[1768040154702,0.12356371,90772.0,90763.0,0.0110177]
[1768040154917,0.17103838,90772.0,90762.0,0.05508899]
[1768040155240,0.17103838,90772.0,90763.0,0.0110177]
[1768040155583,0.17103838,90772.0,90761.0,0.02204]
[1768040156028,0.17103838,90772.0,90762.0,0.01101782]
[1768040157351,0.17103838,90772.0,90763.0,0.0110177]
[1768040158653,0.17103838,90772.0,90762.0,0.01101782]
[1768040159359,0.17103838,90772.0,90763.0,0.0110177]
[1768040160669,0.00024648,90775.0,90772.0,0.000999]
[1768040160670,0.04772115,90775.0,90772.0,0.000999]
[1768040160871,0.00024648,90775.0,90772.0,0.000999]
[1768040161096,0.12356371,90773.0,90772.0,0.000999]
[1768040161242,0.00024648,90775.0,90769.0,0.05615732]
[1768040161418,0.00024648,90775.0,90771.0,0.05615708]
[1768040161840,4.8e-07,90775.0,90773.0,0.04514035]
[1768040162597,4.8e-07,90775.0,90772.0,0.01101661]
[1768040162899,4.8e-07,90775.0,90771.0,0.05615708]
[1768040163923,4.8e-07,90775.0,90772.0,0.01101661]
[1768040164997,4.8e-07,90775.0,90771.0,0.04514035]
[1768040165208,4.8e-07,90775.0,90771.0,0.05615708]
[1768040165447,4.8e-07,90775.0,90772.0,0.01101661]
[1768040165859,4.8e-07,90775.0,90771.0,0.05615708]
[1768040167019,4.8e-07,90775.0,90772.0,0.059337]
[1768040167199,4.8e-07,90775.0,90774.0,0.04832039]
[1768040168297,4.8e-07,90775.0,90771.0,0.04832039]
[1768040169635,4.8e-07,90775.0,90771.0,0.05933712]
[1768040170280,4.8e-07,90775.0,90771.0,0.04832039]
[1768040170667,4.8e-07,90775.0,90771.0,0.05933712]
[1768040170843,4.8e-07,90775.0,90772.0,0.01101661]
[1768040171693,4.8e-07,90775.0,90771.0,0.05933712]
[1768040171875,4.8e-07,90775.0,90772.0,0.01101661]
[1768040172052,4.8e-07,90775.0,90771.0,0.04832039]
[1768040172257,4.8e-07,90775.0,90772.0,0.01101661]
[1768040173923,4.8e-07,90775.0,90771.0,0.04832039]
[1768040174156,4.8e-07,90775.0,90771.0,0.01101673]
[1768040174293,4.8e-07,90775.0,90770.0,0.05508421]
[1768040174294,4.8e-07,90775.0,90770.0,0.01101685]
[1768040174474,0.12356371,90771.0,90770.0,0.01101685]
[1768040174984,0.12356371,90771.0,90769.0,0.01101697]
[1768040175189,0.12356371,90771.0,90769.0,0.11442206]
[1768040176431,0.12356371,90771.0,90769.0,0.05933736]
[1768040176665,0.12356371,90771.0,90769.0,0.11442214]
[1768040177190,0.12356371,90771.0,90769.0,0.05933736]
[1768040177704,0.12356371,90771.0,90769.0,0.04832039]
[1768040178871,4.8e-07,90775.0,90769.0,0.05933736]
[1768040179485,4.8e-07,90775.0,90770.0,0.01101685]
[1768040179683,4.8e-07,90775.0,90771.0,0.01101673]
[1768040179898,4.8e-07,90775.0,90772.0,0.01101661]
[1768040180058,4.8e-07,90775.0,90771.0,0.01101673]
[1768040180279,0.00064679,90773.0,90770.0,0.01101685]
[1768040180463,4.8e-07,90775.0,90770.0,0.01101685]
[1768040180843,0.00063712,90771.0,90770.0,0.01101685]
[1768040180957,1.2e-07,90771.0,90770.0,0.06610112]
[1768040181687,1.2e-07,90771.0,90770.0,0.11442151]
[1768040181890,0.03305394,90794.0,90780.0,0.000116]
[1768040182096,0.0110143,90791.0,90781.0,0.04820439]
[1768040182279,0.01101455,90789.0,90781.0,0.04820439]
[1768040182480,0.0110143,90791.0,90781.0,0.04820439]
[1768040183355,0.00035162,90794.0,90781.0,0.04820439]
[1768040183644,0.00035162,90794.0,90783.0,0.04832039]
[1768040183821,0.00035162,90794.0,90791.0,0.0110143]
[1768040184009,0.00035162,90794.0,90791.0,0.01008616]
[1768040184638,0.04865011,90794.0,90791.0,0.06608562]
[1768040184886,0.04865011,90794.0,90791.0,0.0110143]
[1768040185102,0.00035162,90794.0,90791.0,0.0110143]
[1768040185322,0.0001507,90798.0,90795.0,0.01075201]
[1768040185487,1e-08,90800.0,90799.0,0.05500086]
[1768040185695,1e-08,90800.0,90796.0,0.0110137]
[1768040185843,1e-08,90800.0,90797.0,0.01101357]
[1768040186045,1e-08,90800.0,90796.0,0.04832039]
[1768040186673,1e-08,90800.0,90793.0,0.01101406]
[1768040186891,0.0482985,90800.0,90793.0,0.01101406]
[1768040187092,0.0482985,90800.0,90794.0,0.01101394]
[1768040187297,0.0482985,90800.0,90793.0,0.01101406]
[1768040187633,0.0482985,90800.0,90790.0,0.02208]
[1768040187754,0.0482985,90800.0,90791.0,0.0110143]
[1768040188159,0.0482985,90800.0,90794.0,0.01101394]
[1768040188358,1e-08,90800.0,90794.0,0.01101394]
[1768040188976,1e-08,90800.0,90792.0,0.04832039]